bitfinex/quotes_ETHUSD_20250222
["timestamp","ask_amount","ask_price","bid_price","bid_amount"]
[1740228625442,3.64275,2745.2,2744.8,0.7913]
[1740228625638,5.38228324,2745.2,2744.8,0.7913]
[1740228626146,3.64296,2745.1,2744.8,0.7913]
[1740228627445,3.64296,2745.1,2744.9,0.09674536]
[1740228627909,3.64298,2745.0,2744.9,0.09674536]
[1740228628229,7.06853239,2745.0,2744.9,0.09674536]
[1740228628543,8.31362395,2745.0,2744.9,0.09674536]
[1740228629560,9.12292395,2745.0,2744.9,0.09674536]
[1740228633736,9.12292395,2745.0,2744.9,0.09674536]
[1740228643891,9.67292395,2745.0,2744.9,0.09674536]
[1740228644262,12.67292395,2745.0,2744.9,0.09674536]
[1740228644679,10.90778785,2745.0,2744.9,0.09674536]
[1740228645065,12.56820414,2745.0,2744.9,0.09674536]
[1740228646599,12.67218057,2745.0,2744.9,0.09674536]
[1740228647107,17.99218057,2745.0,2744.9,0.09674536]
[1740228652103,17.18288057,2745.0,2744.9,0.09674536]
[1740228659489,17.98338057,2745.0,2744.9,0.09674536]
[1740228668737,17.87961262,2745.0,2744.9,0.09674536]
[1740228669352,17.87961262,2745.0,2744.9,5.36e-06]
[1740228669653,7.19404,2744.2,2744.1,0.0176]
[1740228669812,14.17456053,2744.2,2744.1,0.0176]
[1740228679253,12.51404,2744.2,2744.1,0.0176]
[1740228679557,14.17456053,2744.2,2744.1,0.0176]
[1740228688880,5.32,2744.2,2744.1,0.8378]
[1740228689371,5.32,2744.2,2744.1,1.29764273]
[1740228690272,5.32,2744.2,2744.1,0.8378]
[1740228690773,6.98052053,2744.2,2744.1,0.8378]
[1740228691653,1.66052053,2744.2,2744.1,0.8378]
[1740228694150,1.66052053,2744.4,2744.1,3.66165]
[1740228694347,1.66052053,2744.4,2744.3,0.8202]
[1740228696948,1.66052053,2744.4,2744.3,4.46411]
[1740228697664,1.66052053,2744.4,2744.3,0.8202]
[1740228699149,1.66052053,2744.4,2744.3,4.46411]
[1740228699896,1.66052053,2744.4,2744.3,0.8202]
[1740228700066,1.66052053,2744.4,2744.3,1.3050015]
[1740228702166,1.66052053,2744.4,2744.3,4.9489115]
[1740228702351,1.66052053,2744.4,2744.3,1.3050015]
[1740228703245,3.64277,2745.2,2744.5,3.64365]
[1740228703500,1.66052053,2745.0,2744.7,3.64337]
[1740228703654,1.66052053,2745.0,2744.8,0.7972]
[1740228704456,2.41732053,2745.0,2744.5,0.7972]
[1740228704689,1.66052053,2744.6,2744.5,0.7972]
[1740228705005,3.64365,2744.5,2744.2,0.7972]
[1740228705551,1.66052053,2744.4,2744.2,0.7972]
[1740228706603,3.64365,2744.5,2744.2,0.7972]
[1740228707401,3.64379,2744.4,2744.2,0.7972]
[1740228707553,3.64379,2744.4,2744.1,0.0176]
[1740228708443,3.64365,2744.5,2744.1,0.0176]
[1740228708444,3.64397,2744.3,2744.1,0.0176]
[1740228708944,7.89548691,2744.2,2744.1,0.0176]
[1740228709146,4.25144691,2744.2,2744.1,0.0176]
[1740228709358,4.71516669,2744.3,2744.1,0.0176]
[1740228709659,7.06838691,2744.2,2744.1,0.0176]
[1740228710414,11.44548691,2744.2,2744.1,0.0176]
[1740228710619,13.59355227,2744.2,2744.1,0.0176]
[1740228713421,0.8271,2744.2,2744.1,0.0176]
[1740228713754,5.32,2744.4,2744.1,0.0176]
[1740228714073,5.32,2744.4,2744.2,4.44175]
[1740228714251,5.32,2744.4,2744.3,3.64391]
[1740228714432,5.32,2744.4,2744.2,0.7978]
[1740228714627,3.64404,2744.2,2744.1,0.0176]
[1740228714828,9.860233,2744.4,2744.1,0.0176]
[1740228716126,13.504143,2744.4,2744.1,0.0176]
[1740228716658,3.64403,2744.3,2744.1,0.0176]
[1740228716863,3.64404,2744.2,2744.1,0.0176]
[1740228717359,3.64404,2744.2,2744.1,0.13172679]
[1740228722073,9.24201721,2744.2,2744.1,0.13172679]
[1740228726376,12.24201721,2744.2,2744.1,0.13172679]
[1740228726571,17.56201721,2744.2,2744.1,0.13172679]
[1740228731277,0.8165,2744.5,2744.1,0.13172679]
[1740228731448,2.191,2746.2,2744.1,0.13172679]
[1740228731449,3.42434691,2745.2,2744.2,0.8052]
[1740228731641,0.8165,2745.1,2744.3,0.8052]
[1740228732037,3.64349,2744.7,2744.3,0.8052]
[1740228734584,3.64354,2744.6,2744.3,0.8052]
[1740228735687,3.64374,2744.5,2744.3,0.8052]
[1740228736011,3.64378,2744.4,2744.1,0.93692679]
[1740228738381,7.06793691,2744.6,2744.1,0.93692679]
[1740228738606,3.64352,2744.6,2744.1,0.93692679]
[1740228738911,3.64352,2744.6,2744.1,1.4066722]
[1740228739723,4.45994,2744.7,2744.1,1.4066722]
[1740228740016,7.06752691,2744.9,2744.3,0.8052]
[1740228740176,7.06752691,2744.9,2744.3,4.44908]
[1740228740715,0.8165,2744.8,2744.3,0.8052]
[1740228740889,3.6436,2744.6,2744.3,0.8052]
[1740228742003,7.06751691,2744.9,2744.3,0.8052]
[1740228742202,7.06751691,2744.9,2744.3,1.31027122]
[1740228742784,7.06751691,2744.9,2744.3,4.95416122]
[1740228743323,3.42434691,2744.9,2744.4,3.64376]
[1740228744594,7.06756691,2744.9,2744.3,1.31027122]
[1740228744813,3.64327,2744.8,2744.3,1.31027122]
[1740228745191,3.64327,2744.8,2744.3,0.8052]
[1740228745638,7.06756691,2744.9,2744.3,0.8052]
[1740228745842,3.64348,2744.7,2744.3,0.8052]
[1740228749479,6.1475,2745.1,2744.3,0.8052]
[1740228749646,7.444,2745.8,2744.9,4.46194]
[1740228749647,0.7706,2745.8,2744.9,4.46194]
[1740228749850,4.41256,2745.8,2745.0,4.089064]
[1740228750038,3.64229,2745.6,2745.0,0.446194]
[1740228750233,5.32,2745.9,2745.3,0.8189]
[1740228750540,3.64222,2745.6,2745.3,0.8189]
[1740228750744,7.06656691,2745.6,2745.3,0.8189]
[1740228750949,3.64222,2745.6,2745.3,0.8189]
[1740228751730,3.64264,2745.3,2745.1,0.8189]
[1740228752216,3.64264,2745.3,2744.8,0.8189]
[1740228752466,3.64288,2745.1,2744.8,0.8189]
[1740228752764,3.6427,2745.3,2744.8,0.8189]
[1740228752924,3.64272,2745.2,2744.8,0.8189]
[1740228753581,3.64311,2744.9,2744.8,0.8189]
[1740228753790,3.64311,2744.9,2744.5,0.8189]
[1740228753962,7.28635,2744.9,2744.5,0.8189]
[1740228754361,3.64331,2744.8,2744.5,0.8189]
[1740228754893,3.64311,2744.9,2744.5,0.8189]
[1740228755616,0.7971,2745.5,2744.5,0.8189]
[1740228755762,3.0,2745.4,2744.7,3.64325]
[1740228755959,6.64245,2745.4,2744.8,3.64323]
[1740228756655,3.0,2745.4,2744.8,3.64323]
[1740228756971,3.0,2745.4,2744.7,0.7642]
[1740228756972,3.64261,2745.3,2744.7,0.7642]
[1740228757855,3.64273,2745.2,2744.7,0.7642]
[1740228758061,0.7971,2745.1,2744.5,0.7642]
[1740228758583,3.64347,2744.7,2744.5,0.7642]
[1740228758990,0.7971,2745.1,2744.3,0.7642]
[1740228759162,3.643,2745.0,2744.4,3.64376]
[1740228759359,6.64296,2745.1,2744.4,3.64376]
[1740228759574,6.64296,2745.1,2744.5,0.7642]
[1740228759791,3.64323,2744.9,2744.5,0.7642]
[1740228760796,3.0,2745.1,2744.5,0.7642]
[1740228760988,3.64303,2745.0,2744.5,0.7642]
[1740228761178,6.64296,2745.1,2744.5,0.7642]
[1740228761500,3.64321,2744.9,2744.5,0.7642]
[1740228763664,1.38980015,2745.0,2744.5,0.7642]
[1740228764070,3.64312,2744.9,2744.5,0.7642]
[1740228765096,1.38980015,2745.0,2744.5,0.7642]
[1740228765400,3.64334,2744.8,2744.5,0.7642]
[1740228767314,3.6434,2744.7,2744.5,0.7642]
[1740228769348,3.6434,2744.7,2744.2,0.262]
[1740228769349,0.80837,2744.7,2744.2,0.7642]
[1740228769663,3.64381,2744.4,2744.1,0.13172679]
[1740228770044,3.64395,2744.3,2744.1,0.13172679]
[1740228770727,3.64404,2744.2,2744.1,0.13172679]
[1740228776569,7.41624,2744.2,2744.1,0.13172679]
[1740228776763,8.522255,2744.2,2744.1,0.13172679]
[1740228779569,7.750055,2744.2,2744.1,0.13172679]
[1740228780339,0.7584,2744.7,2744.1,0.13172679]
[1740228780650,3.64388,2744.4,2744.1,0.13172679]
[1740228781259,0.7584,2744.7,2744.2,0.7585]
[1740228781459,8.96332,2744.8,2744.2,4.40254]
[1740228781846,12.60667,2744.8,2744.2,4.40254]
[1740228782053,8.96332,2744.8,2744.2,4.40254]
[1740228782357,4.40164,2744.9,2744.2,5.22030068]
[1740228782674,3.64326,2744.8,2744.2,5.22030068]
[1740228783035,3.64352,2744.6,2744.2,1.57635068]
[1740228783761,3.64391,2744.3,2744.1,0.13172679]
[1740228784070,3.64381,2744.4,2744.1,0.13172679]
[1740228784271,3.64404,2744.2,2744.1,0.13172679]
[1740228784867,7.42284,2744.2,2744.1,0.13172679]
[1740228786780,7.97284,2744.2,2744.1,0.13172679]
[1740228787075,9.84133069,2744.2,2744.1,0.13172679]
[1740228788758,15.16133069,2744.2,2744.1,6.79e-06]
[1740228792554,8.51253069,2744.2,2744.1,6.79e-06]
[1740228793080,3.6437,2744.5,2744.1,6.79e-06]
[1740228793285,3.64387,2744.4,2744.1,6.79e-06]
[1740228793449,3.0,2744.3,2744.1,6.79e-06]
[1740228794284,6.64391,2744.3,2744.1,6.79e-06]
[1740228795386,3.0,2744.3,2744.1,6.79e-06]
[1740228796655,6.64396,2744.3,2744.1,6.79e-06]
[1740228796854,3.64387,2744.4,2744.1,6.79e-06]
[1740228798887,3.64392,2744.3,2744.1,6.79e-06]
[1740228799067,3.64404,2744.2,2744.1,6.79e-06]
[1740228802254,4.451545,2744.2,2744.1,6.79e-06]
[1740228802790,5.001545,2744.2,2744.1,6.79e-06]
[1740228807195,4.451545,2744.2,2744.1,6.79e-06]
[1740228807403,3.64404,2744.2,2744.1,6.79e-06]
[1740228809707,4.39724,2744.2,2744.1,6.79e-06]
[1740228811908,5.87,2744.5,2744.1,6.79e-06]
[1740228812094,3.64386,2744.4,2744.1,0.76570679]
[1740228812296,3.64399,2744.3,2744.1,0.76570679]
[1740228812605,3.64399,2744.3,2744.2,0.07951285]
[1740228812816,3.64391,2744.3,2744.2,0.07951285]
[1740228813008,5.32,2744.5,2744.2,0.07951285]
[1740228813190,3.64329,2744.8,2744.2,0.52845981]
[1740228813386,3.64329,2744.8,2744.3,0.7657]
[1740228814277,3.64353,2744.6,2744.3,0.7657]
[1740228814589,3.64341,2744.7,2744.3,0.7657]
[1740228815098,3.64353,2744.6,2744.3,0.7657]
[1740228816716,3.64341,2744.7,2744.3,0.7657]
[1740228816913,7.28691,2744.7,2744.3,0.7657]
[1740228817620,3.64378,2744.4,2744.2,0.07951285]
[1740228817782,3.64391,2744.3,2744.2,0.07951285]
[1740228822183,4.46711,2744.3,2744.2,0.07951285]
[1740228824415,3.64391,2744.3,2744.2,0.07951285]
[1740228824618,4.454999,2744.3,2744.2,0.07951285]
[1740228846501,5.797899,2744.3,2744.2,0.07951285]
[1740228852240,3.64391,2744.3,2744.2,0.07951285]
[1740228852406,7.28767,2744.4,2744.2,0.07951285]
[1740228852703,3.64378,2744.4,2744.2,0.07951285]
[1740228853312,8.96366,2744.5,2744.3,0.7601]
[1740228853515,5.32,2744.5,2744.3,0.7601]
[1740228853721,3.64378,2744.4,2744.3,0.7601]
[1740228856741,7.2874,2744.5,2744.3,0.7601]
[1740228857112,3.64365,2744.5,2744.3,0.7601]
[1740228857441,3.64341,2744.7,2744.3,0.7601]
[1740228857442,7.28689,2744.7,2744.3,0.7601]
[1740228857738,3.64356,2744.6,2744.3,0.7601]
[1740228857926,3.64341,2744.7,2744.3,0.7601]
[1740228858525,3.64367,2744.5,2744.3,0.7601]
[1740228859135,3.64341,2744.7,2744.3,0.7601]
[1740228860441,3.64341,2744.7,2744.3,0.44836396]
[1740228860647,3.64341,2744.7,2744.4,0.7601]
[1740228860822,3.64352,2744.6,2744.4,0.7601]
[1740228861024,3.64341,2744.7,2744.4,0.7601]
[1740228861239,3.64343,2744.7,2744.4,0.7601]
[1740228861437,3.64352,2744.6,2744.4,0.7601]
[1740228863314,3.64365,2744.5,2744.4,0.7601]
[1740228864728,3.64391,2744.3,2744.2,0.83771285]
[1740228865420,3.64391,2744.3,2744.2,0.07951285]
[1740228867650,3.64331,2744.8,2744.3,0.8277]
[1740228868053,3.64353,2744.6,2744.3,0.8277]
[1740228868431,7.28667,2744.8,2744.3,0.8277]
[1740228868616,3.64331,2744.8,2744.3,0.8277]
[1740228868820,3.6434,2744.7,2744.3,0.8277]
[1740228869164,0.8178,2745.3,2744.4,0.8277]
[1740228869324,3.6431,2745.0,2744.4,0.8277]
[1740228869519,3.6431,2745.0,2744.5,0.7179672]
[1740228869733,3.64279,2745.2,2744.6,0.8277]
[1740228869956,3.64252,2745.4,2744.7,4.47107]
[1740228870119,3.64287,2745.1,2744.7,0.8277]
[1740228871626,3.64263,2745.3,2744.7,0.8277]
[1740228871969,3.64281,2745.2,2744.7,1.34662872]
[1740228873295,3.64281,2745.2,2744.8,0.8277]
[1740228874868,3.64246,2745.4,2744.8,0.8277]
[1740228875070,3.64264,2745.3,2744.8,0.8277]
[1740228875239,3.64246,2745.4,2744.8,0.8277]
[1740228875440,3.64246,2745.4,2745.0,0.8277]
[1740228875739,11.08624,2745.6,2745.0,0.8277]
[1740228875939,3.64246,2745.4,2745.0,0.8277]
[1740228876135,3.64262,2745.3,2745.0,0.8277]
[1740228876343,3.64246,2745.4,2745.0,0.8277]
[1740228877057,3.0,2745.5,2745.0,0.8277]
[1740228877279,6.64233,2745.5,2745.0,0.8277]
[1740228877430,0.8178,2746.1,2745.1,0.8277]
[1740228877777,3.64204,2745.8,2745.4,0.8277]
[1740228877929,3.64232,2745.5,2745.4,0.8277]
[1740228878427,3.64232,2745.5,2745.0,0.8277]
[1740228878950,3.6424,2745.5,2745.0,0.8277]
[1740228879331,3.64247,2745.4,2745.0,0.8277]
[1740228879541,3.64205,2745.7,2745.0,0.8277]
[1740228879743,0.55,2745.8,2745.0,0.8277]
[1740228879943,3.64245,2745.5,2745.0,0.8277]
[1740228880162,3.64271,2745.3,2745.0,0.8277]
[1740228880370,3.64285,2745.1,2745.0,0.8277]
[1740228880564,3.64299,2745.0,2744.8,0.8277]
[1740228880739,3.64311,2744.9,2744.8,0.8277]
[1740228881368,4.371706,2744.9,2744.5,0.8277]
[1740228881735,3.64351,2744.6,2744.5,0.8277]
[1740228882166,3.64351,2744.6,2744.3,0.8276]
[1740228882493,3.64307,2745.0,2744.3,4.47139]
[1740228882654,3.0,2744.9,2744.4,0.8276]
[1740228882853,3.64333,2744.8,2744.4,0.8276]
[1740228883382,3.64348,2744.7,2744.4,0.8276]
[1740228883588,3.64333,2744.8,2744.4,0.8276]
[1740228884581,3.64352,2744.6,2744.4,0.8276]
[1740228884790,3.64333,2744.8,2744.4,0.8276]
[1740228885754,3.6434,2744.7,2744.4,0.8276]
[1740228885954,3.64333,2744.8,2744.4,0.8276]
[1740228886154,3.0,2744.9,2744.4,0.8276]
[1740228886405,3.6436,2744.6,2744.4,0.8276]
[1740228886815,3.64365,2744.5,2744.2,0.85141285]
[1740228887506,3.6436,2744.6,2744.2,0.85141285]
[1740228887798,3.64366,2744.5,2744.2,0.85141285]
[1740228888006,3.6436,2744.6,2744.2,0.85141285]
[1740228888202,3.64367,2744.5,2744.2,0.85141285]
[1740228888911,3.8065,2744.9,2744.2,0.85141285]
[1740228888912,3.64326,2744.8,2744.2,0.85141285]
[1740228889760,3.64326,2744.8,2744.2,5.30934781]
[1740228891493,3.64345,2744.7,2744.2,1.66538781]
[1740228891795,7.28664,2744.8,2744.2,1.66538781]
[1740228892204,3.64326,2744.8,2744.2,1.66538781]
[1740228893280,7.28661,2744.8,2744.2,1.66538781]
[1740228893601,3.64339,2744.7,2744.2,1.66538781]
[1740228895290,3.64339,2744.7,2744.2,5.30940781]
[1740228895706,3.64339,2744.7,2744.2,1.66538781]
[1740228895905,3.64353,2744.6,2744.2,0.85141285]
[1740228897804,3.64326,2744.8,2744.2,0.85141285]
[1740228898107,3.64342,2744.7,2744.2,0.85141285]
[1740228899724,3.64373,2744.5,2744.2,0.85141285]
[1740228899876,3.64387,2744.4,2744.2,0.85141285]
[1740228900431,3.64391,2744.3,2744.2,0.85141285]
[1740228901042,3.64391,2744.3,2744.2,0.07951285]
[1740228901180,5.136079,2744.3,2744.2,0.07951285]
[1740228903183,5.12857484,2744.3,2744.2,0.07951285]
[1740228903834,4.372679,2744.3,2744.2,0.07951285]
[1740228904488,4.372679,2744.3,2744.2,0.14968697]
[1740228905090,3.64391,2744.3,2744.2,0.14968697]
[1740228910714,3.64378,2744.5,2744.3,0.7508]
[1740228910715,3.64378,2744.4,2744.3,0.7508]
[1740228912589,3.0,2744.6,2744.3,0.7508]
[1740228912788,3.64372,2744.5,2744.3,0.7508]
[1740228917313,3.0,2744.6,2744.3,0.7508]
[1740228917511,3.64176,2746.0,2745.2,0.7508]
[1740228917683,4.39203,2746.2,2745.4,0.7508]
[1740228918045,3.64143,2746.2,2745.5,0.91077058]
[1740228918401,3.64157,2746.1,2745.5,0.91077058]
[1740228918745,3.64167,2746.0,2745.5,0.91077058]
[1740228919110,3.64184,2745.9,2745.6,0.19374752]
[1740228919452,3.6418,2745.9,2745.4,1.49114588]
[1740228920049,3.64194,2745.8,2745.4,1.49114588]
[1740228920235,3.64206,2745.7,2745.4,1.49114588]
[1740228921342,3.64206,2745.7,2745.4,0.74034588]
[1740228922164,3.64219,2745.6,2745.4,0.74034588]
[1740228922467,3.64206,2745.7,2745.4,0.74034588]
[1740228922945,3.64219,2745.6,2745.4,0.74034588]
[1740228923144,3.64206,2745.7,2745.4,0.74034588]
[1740228924970,7.28424,2745.7,2745.4,0.74034588]
[1740228925170,3.64206,2745.7,2745.4,0.74034588]
[1740228928293,3.64196,2745.8,2745.4,0.74034588]
[1740228930857,3.0,2745.9,2745.4,0.74034588]
[1740228931102,6.64189,2745.9,2745.4,0.74034588]
[1740228931607,3.64189,2745.9,2745.4,0.52142767]
[1740228932583,3.64195,2745.8,2745.4,0.52142767]
[1740228933177,3.64214,2745.7,2745.4,0.52142767]
[1740228935092,9.113106,2746.3,2745.6,3.42111868]
[1740228935093,0.151796,2746.3,2745.6,3.42111868]
[1740228935417,0.151796,2746.3,2746.2,7.84060868]
[1740228935755,1e-08,2746.3,2746.2,4.51949]
[1740228935950,1e-08,2746.3,2746.2,7.94060868]
[1740228936193,1e-08,2746.3,2746.2,7.84060868]
[1740228936404,6.63967,2747.5,2746.8,0.7781]
[1740228936559,3.0,2747.5,2746.8,0.7781]
[1740228936753,3.63964,2747.6,2746.9,4.41855]
[1740228937060,3.63939,2747.8,2746.9,1.219955]
[1740228937289,3.63939,2747.8,2747.1,3.64014]
[1740228937601,3.63939,2747.8,2746.9,4.41855]
[1740228937602,3.63955,2747.6,2746.9,4.41855]
[1740228937975,3.42111868,2747.9,2746.9,0.7781]
[1740228938173,3.64031,2747.1,2746.9,0.7781]
[1740228938374,3.63995,2747.3,2746.5,3.64089]
[1740228938601,3.64009,2747.2,2746.6,0.441899]
[1740228938800,3.64036,2747.0,2746.4,0.7781]
[1740228939111,3.6403,2747.1,2746.4,0.7781]
[1740228939665,3.64048,2746.9,2746.4,0.7781]
[1740228940280,3.6403,2747.1,2746.4,0.7781]
[1740228941002,4.45949,2747.6,2746.4,0.7781]
[1740228941003,3.64084,2746.7,2746.4,0.7781]
[1740228941366,3.64099,2746.5,2746.4,0.7781]
[1740228941607,3.64129,2746.3,2746.0,0.7781]
[1740228942893,3.64129,2746.3,2745.8,5.37]
[1740228942894,3.64152,2746.1,2745.8,5.37]
[1740228943401,3.64179,2745.9,2745.8,5.37]
[1740228944076,3.64221,2745.6,2745.4,0.8186]
[1740228945182,3.64232,2745.5,2745.1,1.1086]
[1740228945509,3.64253,2745.4,2745.1,0.8186]
[1740228946006,3.6427,2745.3,2745.1,0.8186]
[1740228946579,7.82312868,2745.9,2744.8,6.1886]
[1740228946580,3.64272,2745.2,2744.8,6.1886]
[1740228946785,3.64272,2745.2,2744.4,3.64374]
[1740228946786,3.64348,2744.7,2744.5,6.1886]
[1740228947594,3.64348,2744.7,2744.5,0.8186]
[1740228948871,3.64314,2744.9,2744.5,0.8186]
[1740228949489,7.28639,2744.9,2744.5,0.8186]
[1740228950003,3.64314,2744.9,2744.5,0.8186]
[1740228950203,3.6428,2745.2,2744.5,0.8186]
[1740228950403,3.6428,2745.2,2744.5,1.264829]
[1740228950978,6.6426,2745.3,2744.7,3.64336]
[1740228951497,3.0,2745.3,2744.7,3.64336]
[1740228951884,3.64203,2745.8,2745.0,0.8308]
[1740228952097,3.64203,2745.8,2745.1,3.64275]
[1740228952302,3.0,2745.7,2745.0,0.8308]
[1740228952500,3.64234,2745.5,2745.0,1.671402]
[1740228952816,3.64247,2745.4,2744.8,0.289]
[1740228953192,3.64225,2745.6,2744.9,3.64308]
[1740228953389,3.64211,2745.7,2744.9,3.64308]
[1740228953712,3.64183,2745.9,2745.2,3.64271]
[1740228953874,7.902171,2745.9,2745.1,3.64275]
[1740228954079,3.64193,2745.8,2745.2,3.6427]
[1740228954379,3.64193,2745.8,2745.1,3.64275]
[1740228954811,3.64198,2745.8,2745.1,3.64275]
[1740228955116,6.64183,2745.9,2745.3,3.64258]
[1740228955288,3.0,2745.9,2745.6,0.7823]
[1740228955487,0.8102,2746.2,2745.6,0.7823]
[1740228955679,4.39344,2746.5,2745.6,4.42447]
[1740228955883,4.39344,2746.5,2745.6,0.7823]
[1740228955884,3.64145,2746.2,2745.6,0.7823]
[1740228956198,3.64134,2746.3,2745.6,0.7823]
[1740228956607,3.64148,2746.2,2745.6,4.4244]
[1740228957115,3.64164,2746.1,2745.6,0.7823]
[1740228959589,3.64179,2745.9,2745.6,0.7823]
[1740228960212,3.64164,2746.1,2745.6,1.39753]
[1740228960611,3.64167,2746.0,2745.6,1.39753]
[1740228960819,3.64164,2746.1,2745.6,1.39753]
[1740228962199,7.28327,2746.1,2745.6,1.39753]
[1740228962401,3.64162,2746.1,2745.6,1.39753]
[1740228963103,3.64162,2746.1,2745.6,5.03971]
[1740228963507,3.6414,2746.2,2745.7,0.72667916]
[1740228963701,7.17351868,2746.5,2745.6,4.42448]
[1740228963905,3.64128,2746.3,2745.7,3.64194]
[1740228964909,3.64113,2746.4,2745.7,3.64194]
[1740228965315,3.64133,2746.3,2745.7,3.64194]
[1740228965833,3.6414,2746.2,2745.7,3.64194]
[1740228966136,3.64162,2746.1,2745.6,0.7823]
[1740228966492,3.6412,2746.4,2745.6,4.4244]
[1740228966708,3.6412,2746.4,2745.7,3.64197]
[1740228966929,3.6412,2746.4,2745.9,4.42149]
[1740228967811,3.6412,2746.4,2745.9,0.7797]
[1740228968528,3.64094,2746.6,2745.9,4.42137]
[1740228968732,3.64094,2746.6,2746.1,3.6415]
[1740228969124,3.0,2746.7,2746.1,3.64143]
[1740228969321,6.64074,2746.7,2746.1,4.447714]
[1740228969523,7.28208,2746.5,2745.9,4.4214]
[1740228969723,3.641,2746.5,2745.9,4.4214]
[1740228970630,3.641,2746.5,2745.9,0.7797]
[1740228970799,3.641,2746.5,2745.9,4.42148]
[1740228971204,7.2821,2746.5,2745.9,4.42148]
[1740228971507,3.64119,2746.4,2745.9,5.25643]
[1740228971820,3.64119,2746.4,2745.9,1.61465]
[1740228972400,3.64126,2746.3,2745.9,1.61465]
[1740228972834,3.6414,2746.2,2745.9,1.61465]
[1740228973338,3.6414,2746.2,2745.9,0.7797]
[1740228973840,3.64166,2746.0,2745.9,0.7797]
[1740228974204,3.64156,2746.1,2745.9,0.7797]
[1740228974535,3.64166,2746.0,2745.7,1.0657]
[1740228975843,3.6414,2746.2,2745.7,1.0657]
[1740228976019,3.64155,2746.1,2745.7,1.0657]
[1740228977437,3.64216,2745.7,2745.5,5.37]
[1740228977640,3.64219,2745.6,2745.4,0.7797]
[1740228977825,3.64197,2745.8,2745.4,0.7797]
[1740228978013,3.64179,2745.9,2745.4,0.7797]
[1740228978336,3.64232,2745.5,2745.4,0.7797]
[1740228978709,3.64227,2745.6,2745.2,6.1497]
[1740228978914,3.6424,2745.5,2745.2,6.1497]
[1740228979345,3.64258,2745.3,2745.2,0.7797]
[1740228979532,3.64258,2745.3,2744.9,6.1497]
[1740228979728,3.64274,2745.2,2744.9,5.37]
[1740228980403,0.8037,2745.4,2744.9,5.37]
[1740228981244,3.6427,2745.3,2744.9,5.37]
[1740228981745,3.6428,2745.2,2744.9,5.37]
[1740228982727,3.6428,2745.2,2744.7,0.7797]
[1740228983615,3.64288,2745.1,2744.7,0.7797]
[1740228983947,3.64274,2745.2,2744.7,0.7797]
[1740228984356,3.6427,2745.3,2744.7,0.7797]
[1740228984519,3.64293,2745.1,2744.5,5.37]
[1740228984715,3.64293,2745.1,2744.5,9.01355]
[1740228985026,3.64293,2745.1,2744.5,5.37]
[1740228985233,3.64299,2745.0,2744.6,0.27084535]
[1740228986024,3.42111868,2745.3,2744.6,0.27084535]
[1740228986432,3.64338,2744.7,2744.6,0.27084535]
[1740228987022,3.64338,2744.7,2744.2,5.51968697]
[1740228987223,0.7641,2744.9,2744.2,5.51968697]
[1740228987919,0.7641,2744.9,2744.2,9.16371697]
[1740228988322,0.7641,2744.9,2744.2,5.51968697]
[1740228989956,3.64325,2744.8,2744.2,5.51968697]
[1740228990652,0.7641,2744.9,2744.2,5.51968697]
[1740228990857,3.42111868,2744.7,2744.2,5.51968697]
[1740228991560,3.42111868,2744.7,2744.2,0.14968697]
[1740228993731,0.8277,2745.2,2744.3,0.8083]
[1740228994050,0.8277,2745.2,2744.3,4.45209]
[1740228994665,0.8277,2745.2,2744.4,0.04369622]
[1740228994850,0.8277,2745.2,2744.5,3.64357]
[1740228995034,0.8277,2745.2,2744.4,0.04369622]
[1740228995235,3.42111868,2745.0,2744.5,0.44957862]
[1740228995536,3.42111868,2745.0,2744.4,0.04369622]
[1740228996262,3.42111868,2744.7,2744.4,0.04369622]
[1740229002471,4.24881868,2744.9,2744.4,0.04369622]
[1740229005865,7.89193868,2744.9,2744.4,0.04369622]
[1740229006266,4.24881868,2744.9,2744.4,0.04369622]
[1740229006467,0.42488187,2744.8,2744.4,0.04369622]
[1740229007369,4.06823187,2744.8,2744.4,0.04369622]
[1740229007680,0.42488187,2744.8,2744.4,0.04369622]
[1740229014486,0.7585,2744.5,2744.4,0.04369622]
[1740229015364,4.40215,2744.5,2744.4,0.04369622]
[1740229015560,1.90517387,2744.5,2744.4,0.04369622]
[1740229015762,4.90517387,2744.5,2744.4,0.04369622]
[1740229018990,8.54882387,2744.5,2744.4,0.04369622]
[1740229021794,4.90517387,2744.5,2744.4,0.04369622]
[1740229022572,8.54882387,2744.5,2744.4,0.04369622]
[1740229023373,9.09882387,2744.5,2744.4,0.04369622]
[1740229023765,12.51994255,2744.5,2744.4,0.04369622]
[1740229025278,9.09882387,2744.5,2744.4,0.04369622]
[1740229027399,14.41882387,2744.5,2744.4,0.04369622]
[1740229029300,18.26082387,2744.5,2744.4,0.04369622]
[1740229029501,17.83994255,2744.5,2744.4,0.04369622]
[1740229034810,17.83994255,2744.5,2744.2,0.14968697]
[1740229034811,6.64391,2744.3,2744.2,0.14968697]
[1740229035020,7.95981,2744.3,2744.2,0.14968697]
[1740229036820,0.7659,2744.1,2743.1,0.7727]
[1740229037020,3.42111868,2743.2,2742.4,0.7727]
[1740229037320,0.70663687,2743.1,2742.4,0.7727]
[1740229037515,3.42111868,2743.2,2742.4,0.7727]
[1740229037814,3.42111868,2743.2,2742.7,0.7727]
[1740229039016,3.0,2743.4,2742.9,0.7727]
[1740229043906,8.2689,2744.0,2743.0,0.7892]
[1740229044107,3.42111868,2743.8,2743.3,0.7892]
[1740229044304,3.0,2743.7,2743.3,0.7892]
[1740229045198,3.0,2743.7,2742.9,0.7892]
[1740229045435,3.0,2743.7,2743.0,3.64554]
[1740229045999,3.42111868,2743.5,2742.9,0.7892]
[1740229046505,3.42111868,2743.5,2742.9,4.43488]
[1740229046706,3.42111868,2743.5,2742.9,5.242947]
[1740229047736,3.55,2743.7,2743.0,4.42213]